bitfinex-derivatives/quotes_BNBF0:USTF0_20250617
["timestamp","ask_amount","ask_price","bid_price","bid_amount"]
[1750186862411,1.01850755,646.13,645.52,1.142]
[1750186862712,1.01850755,646.12,645.52,1.142]
[1750186863009,1.01850755,646.11,645.52,1.142]
[1750186863208,1.01850755,646.1,645.52,1.142]
[1750186863407,1.01850755,646.09,645.52,1.142]
[1750186863607,1.01850755,646.08,645.52,1.142]
[1750186863808,1.01850755,646.07,645.52,1.142]
[1750186864012,1.01850755,646.06,645.52,1.142]
[1750186864209,1.01850755,646.05,645.52,1.142]
[1750186864408,1.01850755,646.04,645.52,1.142]
[1750186864609,1.01850755,646.03,645.52,1.142]
[1750186864809,1.01850755,646.02,645.52,1.142]
[1750186865008,1.01850755,646.01,645.52,1.142]
[1750186865208,1.01850755,646.0,645.52,1.142]
[1750186865413,1.01850755,645.99,645.52,1.142]
[1750186865614,1.01850755,645.98,645.52,1.142]
[1750186865810,1.01850755,645.97,645.52,1.142]
[1750186866009,1.01850755,645.96,645.52,1.142]
[1750186866210,1.01850755,645.95,645.52,1.142]
[1750186866410,1.15712846,646.26,645.52,1.142]
[1750186866613,2.17634929,646.25,645.52,1.142]
[1750186866812,1.01922083,646.24,645.52,1.142]
[1750186867016,1.01922083,646.23,645.52,1.142]
[1750186867217,1.01922083,646.22,645.52,1.142]
[1750186867416,1.01922083,646.21,645.52,1.142]
[1750186867618,1.01922083,646.2,645.52,1.142]
[1750186867813,1.01922083,646.19,645.52,1.142]
[1750186868013,1.01922083,646.18,645.52,1.142]
[1750186868217,1.01922083,646.17,645.52,1.142]
[1750186868413,1.01922083,646.16,645.52,1.142]
[1750186868615,1.01922083,646.15,645.52,1.142]
[1750186868816,1.01922083,646.14,645.52,1.142]
[1750186869016,1.01922083,646.13,645.52,1.142]
[1750186869319,0.26938529,646.35,645.52,1.142]
[1750186869320,1.01922083,646.12,645.52,1.142]
[1750186869519,1.01922083,646.11,645.52,1.142]
[1750186869717,1.01922083,646.1,645.52,1.142]
[1750186869915,1.01922083,646.09,645.52,1.142]
[1750186870118,1.01922083,646.08,645.52,1.142]
[1750186870418,1.01922083,646.07,645.52,1.142]
[1750186870619,1.01922083,646.06,645.52,1.142]
[1750186870819,1.01922083,646.05,645.52,1.142]
[1750186871119,1.01922083,646.04,645.52,1.142]
[1750186871319,1.01922083,646.03,645.52,1.142]
[1750186871519,1.01922083,646.02,645.52,1.142]
[1750186871720,1.15712846,646.22,645.52,1.142]
[1750186871721,1.01922083,646.01,645.52,1.142]
[1750186871917,1.15712846,646.22,645.52,1.142]
[1750186871918,1.01922083,646.0,645.53,1.279]
[1750186872119,1.01922083,645.99,645.53,1.279]
[1750186872321,1.01922083,645.98,645.53,1.279]
[1750186872518,1.15712846,646.22,645.53,1.279]
[1750186872822,1.0191354,646.21,645.53,1.279]
[1750186873019,1.0191354,646.2,645.53,1.279]
[1750186873219,1.0191354,646.19,645.54,1.081]
[1750186873521,1.0191354,646.18,645.54,1.081]
[1750186873724,1.0191354,646.17,645.54,1.081]
[1750186873921,1.0191354,646.16,645.54,1.081]
[1750186874123,1.0191354,646.15,645.54,1.081]
[1750186874319,1.0191354,646.14,645.54,1.081]
[1750186874620,1.0191354,646.13,645.54,1.081]
[1750186874821,1.0191354,646.12,645.54,1.081]
[1750186875022,1.0191354,646.11,645.54,1.081]
[1750186875222,1.0191354,646.1,645.54,1.081]
[1750186875522,1.0191354,646.09,645.54,1.081]
[1750186875722,1.0191354,646.08,645.54,1.081]
[1750186875918,1.0191354,646.07,645.54,1.081]
[1750186876123,1.0191354,646.06,645.54,1.081]
[1750186876321,1.0191354,646.05,645.54,1.081]
[1750186876523,1.0191354,646.04,645.54,1.081]
[1750186876723,1.0191354,646.03,645.54,1.081]
[1750186876923,1.0191354,646.02,645.54,1.081]
[1750186877121,1.0191354,646.01,645.54,1.081]
[1750186877324,1.0191354,646.0,645.54,1.081]
[1750186877521,1.0191354,645.99,645.54,1.081]
[1750186877725,1.15712846,646.2,645.54,1.081]
[1750186877922,1.01926302,646.19,645.54,1.081]
[1750186878126,1.01926302,646.18,645.54,1.081]
[1750186878421,1.01926302,646.17,645.54,1.081]
[1750186878624,1.15712846,646.19,645.54,1.081]
[1750186878625,1.01926302,646.16,645.54,1.081]
[1750186878921,1.01926302,646.15,645.54,1.081]
[1750186879121,1.01926302,646.14,645.54,1.081]
[1750186879325,1.01926302,646.13,645.54,1.081]
[1750186879525,1.01926302,646.12,645.54,1.081]
[1750186879729,1.01926302,646.11,645.54,1.081]
[1750186879927,1.01926302,646.1,645.54,1.081]
[1750186880124,1.01926302,646.09,645.54,1.081]
[1750186880327,1.01926302,646.08,645.54,1.081]
[1750186880523,1.01926302,646.07,645.54,1.081]
[1750186880823,1.01926302,646.06,645.54,1.081]
[1750186881028,1.01926302,646.05,645.54,1.081]
[1750186881227,1.01926302,646.04,645.54,1.081]
[1750186881524,1.01926302,646.03,645.54,1.081]
[1750186881730,1.01926302,646.02,645.54,1.081]
[1750186881929,1.01926302,646.01,645.54,1.081]
[1750186882129,1.01926302,646.0,645.54,1.081]
[1750186882326,1.01926302,645.99,645.54,1.081]
[1750186882527,1.54052613,646.28,645.54,1.081]
[1750186882528,1.01926302,645.98,645.54,1.081]
[1750186882724,1.15712846,646.17,645.54,1.081]
[1750186882924,1.01965196,646.16,645.54,1.081]
[1750186883126,1.01965196,646.15,645.54,1.081]
[1750186883327,1.01965196,646.14,645.55,1.338]
[1750186883524,1.01965196,646.13,645.55,1.338]
[1750186883724,1.01965196,646.12,645.55,1.338]
[1750186883928,1.01965196,646.11,645.55,1.338]
[1750186884124,1.01965196,646.1,645.55,1.338]
[1750186884328,1.01965196,646.09,645.55,1.338]
[1750186884627,1.01965196,646.08,645.55,1.338]
[1750186884825,1.01965196,646.07,645.55,1.338]
[1750186885027,1.15712846,646.17,645.55,1.338]
[1750186885028,1.01965196,646.06,645.55,1.338]
[1750186885225,1.01965196,646.05,645.55,1.338]
[1750186885430,1.01965196,646.04,645.55,1.338]
[1750186885728,1.01965196,646.03,645.55,1.338]
[1750186885924,1.01965196,646.02,645.55,1.338]
[1750186886124,1.01965196,646.01,645.55,1.338]
[1750186886329,1.01965196,646.0,645.55,1.338]
[1750186886529,1.01965196,645.99,645.55,1.338]
[1750186886824,1.01965196,645.98,645.55,1.338]
[1750186887029,1.01965196,645.97,645.55,1.338]
[1750186887229,1.01965196,645.96,645.55,1.338]
[1750186887430,1.01965196,645.95,645.55,1.338]
[1750186887630,1.15712846,646.16,645.55,1.338]
[1750186887926,1.02045022,646.15,645.55,1.338]
[1750186888128,1.02045022,646.14,645.55,1.338]
[1750186888427,1.02045022,646.13,645.55,1.338]
[1750186888631,1.02045022,646.12,645.55,1.338]
[1750186888832,1.02045022,646.11,645.55,1.338]
[1750186889029,1.02045022,646.1,645.55,1.338]
[1750186889330,1.02045022,646.09,645.55,1.338]
[1750186889525,1.02045022,646.08,645.55,1.338]
[1750186889728,1.02045022,646.07,645.55,1.338]
[1750186889928,1.02045022,646.06,645.55,1.338]
[1750186890231,1.02045022,646.05,645.55,1.338]
[1750186890528,1.02045022,646.04,645.55,1.338]
[1750186890732,1.02045022,646.03,645.55,1.338]
[1750186890930,1.02045022,646.02,645.55,1.338]
[1750186891129,1.02045022,646.01,645.55,1.338]
[1750186891331,1.02045022,646.0,645.55,1.338]
[1750186891529,1.02045022,645.99,645.55,1.338]
[1750186891729,1.02045022,645.98,645.55,1.338]
[1750186891928,1.02045022,645.97,645.56,1.078]
[1750186892229,1.02045022,645.96,645.56,1.078]
[1750186892429,1.02045022,645.95,645.56,1.078]
[1750186892632,1.02045022,645.94,645.56,1.078]
[1750186892833,1.02045022,645.93,645.56,1.078]
[1750186893131,1.02045022,645.92,645.56,1.078]
[1750186893334,1.02259604,645.91,645.56,1.078]
[1750186893531,1.15712846,646.29,645.56,1.078]
[1750186893732,1.02258202,646.28,645.56,1.078]
[1750186893931,1.02258202,646.27,645.56,1.078]
[1750186894130,1.02258202,646.26,645.56,1.078]
[1750186894331,1.02258202,646.25,645.56,1.078]
[1750186894535,1.02258202,646.24,645.56,1.078]
[1750186894833,1.02258202,646.23,645.57,1.2]
[1750186895034,1.02258202,646.22,645.57,1.2]
[1750186895332,1.02258202,646.21,645.57,1.2]
[1750186895635,1.02258202,646.2,645.57,1.2]
[1750186895832,1.02258202,646.19,645.57,1.2]
[1750186896033,1.02258202,646.18,645.57,1.2]
[1750186896234,1.02258202,646.17,645.57,1.2]
[1750186896433,1.02258202,646.16,645.57,1.2]
[1750186896633,1.02258202,646.15,645.57,1.2]
[1750186896835,1.02258202,646.14,645.57,1.2]
[1750186897036,1.02258202,646.13,645.57,1.2]
[1750186897236,1.02258202,646.12,645.57,1.2]
[1750186897437,1.02258202,646.11,645.57,1.2]
[1750186897738,1.02258202,646.1,645.57,1.2]
[1750186897935,1.02258202,646.09,645.57,1.2]
[1750186898136,1.02258202,646.08,645.57,1.2]
[1750186898336,1.02258202,646.07,645.57,1.2]
[1750186898535,1.02258202,646.06,645.57,1.2]
[1750186898734,1.02258202,646.05,645.57,1.2]
[1750186898939,1.02258202,646.04,645.57,1.2]
[1750186899239,1.02258202,646.03,645.57,1.2]
[1750186899436,1.02258202,646.02,645.57,1.2]
[1750186899641,1.02258202,646.01,645.57,1.2]
[1750186899936,1.02258202,646.0,645.57,1.2]
[1750186900141,1.02258202,645.99,645.57,1.2]
[1750186900437,1.02258202,645.98,645.57,1.2]
[1750186900636,1.02258202,645.97,645.57,1.2]
[1750186900838,1.02258202,645.96,645.57,1.2]
[1750186901035,1.02258202,645.95,645.57,1.2]
[1750186901236,1.15712846,646.27,645.57,1.2]
[1750186901536,1.02290566,646.26,645.57,1.2]
[1750186901740,1.02290566,646.25,645.57,1.2]
[1750186902040,1.02290566,646.24,645.57,1.2]
[1750186902241,1.02290566,646.23,645.57,1.2]
[1750186902436,1.02290566,646.22,645.57,1.2]
[1750186902636,1.02290566,646.21,645.57,1.2]
[1750186902841,1.02290566,646.2,645.57,1.2]
[1750186903041,1.02290566,646.19,645.57,1.2]
[1750186903237,1.02290566,646.18,645.57,1.2]
[1750186903541,1.02290566,646.17,645.57,1.2]
[1750186903741,1.02290566,646.16,645.57,1.2]
[1750186903940,1.02290566,646.15,645.57,1.2]
[1750186904137,1.02290566,646.14,645.57,1.2]
[1750186904437,1.02290566,646.13,645.57,1.2]
[1750186904637,1.02290566,646.12,645.57,1.2]
[1750186904837,1.02290566,646.11,645.57,1.2]
[1750186905136,1.02290566,646.1,645.57,1.2]
[1750186905338,1.02290566,646.09,645.57,1.2]
[1750186905636,1.02290566,646.08,645.57,1.2]
[1750186905839,1.02290566,646.07,645.57,1.2]
[1750186906137,1.02290566,646.06,645.57,1.2]
[1750186906340,1.15712846,646.31,645.57,1.2]
[1750186906538,1.02216166,646.3,645.57,1.2]
[1750186906741,2.17929012,646.29,645.57,1.2]
[1750186907037,0.26938529,646.35,645.57,1.2]
[1750186907038,1.02216166,646.28,645.57,1.2]
[1750186907242,1.02216166,646.27,645.57,1.2]
[1750186907443,1.02216166,646.26,645.57,1.2]
[1750186907642,1.02216166,646.25,645.57,1.2]
[1750186907846,1.02216166,646.24,645.58,2.30783177]
[1750186908042,1.02216166,646.23,645.58,1.447]
[1750186908239,1.02216166,646.22,645.58,1.447]
[1750186908443,1.02216166,646.21,645.58,1.447]
[1750186908743,1.02216166,646.2,645.58,1.447]
[1750186908940,1.02216166,646.19,645.58,1.447]
[1750186909140,1.02216166,646.18,645.58,1.447]
[1750186909442,1.02216166,646.17,645.58,1.447]
[1750186909740,1.02216166,646.16,645.58,1.447]
[1750186909943,1.02216166,646.15,645.58,1.447]
[1750186910141,1.02216166,646.14,645.58,1.447]
[1750186910344,0.26938529,646.35,645.58,1.447]
[1750186910542,1.02136006,646.34,645.58,1.447]
[1750186910761,1.02136006,646.33,645.58,1.447]
[1750186910940,1.02136006,646.32,645.58,1.447]
[1750186911247,1.02136006,646.31,645.58,1.447]
[1750186911548,1.02136006,646.3,645.58,1.447]
[1750186911846,1.02136006,646.29,645.58,1.447]
[1750186912041,0.26938529,646.35,645.58,1.447]
[1750186912042,1.02136006,646.28,645.58,1.447]
[1750186912347,1.02136006,646.27,645.58,1.447]
[1750186912543,1.02136006,646.26,645.58,1.447]
[1750186912845,1.02136006,646.25,645.58,1.447]
[1750186913046,1.02136006,646.24,645.58,1.447]
[1750186913246,1.02136006,646.23,645.58,1.447]
[1750186913547,1.02136006,646.22,645.58,1.447]
[1750186913841,1.02136006,646.21,645.58,1.447]
[1750186914046,1.02136006,646.2,645.58,1.447]
[1750186914245,0.26938529,646.35,645.58,1.447]
[1750186914246,1.02136006,646.19,645.58,1.447]
[1750186914446,1.02136006,646.18,645.58,1.447]
[1750186914642,1.02136006,646.17,645.58,1.447]
[1750186914846,1.02136006,646.16,645.58,1.447]
[1750186915046,0.26938529,646.35,645.58,1.447]
[1750186915246,1.02075904,646.34,645.58,1.447]
[1750186915447,1.02075904,646.33,645.58,1.447]
[1750186915643,1.02075904,646.32,645.58,1.447]
[1750186915947,1.02075904,646.31,645.58,1.447]
[1750186916143,1.02075904,646.3,645.58,1.447]
[1750186916343,1.02075904,646.29,645.58,1.447]
[1750186916545,1.02075904,646.28,645.58,1.447]
[1750186916849,0.26933108,646.5,645.58,1.447]
[1750186917041,1.02009369,646.49,645.58,1.447]
[1750186917242,1.02009369,646.48,645.59,0.30979414]
[1750186917442,1.02009369,646.47,645.59,0.30979414]
[1750186917642,1.02009369,646.46,645.59,0.30979414]
[1750186917847,1.02009369,646.45,645.59,0.30979414]
[1750186918042,1.02009369,646.44,645.59,0.30979414]
[1750186918243,1.02009369,646.43,645.59,0.30979414]
[1750186918447,1.02009369,646.42,645.59,0.30979414]
[1750186918648,1.02009369,646.41,645.59,0.30979414]
[1750186918944,1.02009369,646.4,645.59,0.30979414]
[1750186919148,1.02009369,646.39,645.59,0.30979414]
[1750186919342,1.02009369,646.38,645.59,0.30979414]
[1750186919645,1.02009369,646.37,645.59,0.30979414]
[1750186919843,1.02009369,646.36,645.59,0.30979414]
[1750186920047,1.02009369,646.35,645.59,0.30979414]
[1750186920244,1.02009369,646.34,645.59,0.30979414]
[1750186920442,1.02009369,646.33,645.59,0.30979414]
[1750186920646,1.02009369,646.32,645.59,0.30979414]
[1750186920847,1.02009369,646.31,645.59,0.30979414]
[1750186921047,0.26933108,646.5,645.59,0.30979414]
[1750186921247,1.01613683,646.49,645.59,0.30979414]
[1750186921548,1.01613683,646.48,645.59,0.30979414]
[1750186921748,1.01613683,646.47,645.59,0.30979414]
[1750186922049,1.01613683,646.46,645.6,1.337]
[1750186922246,1.01613683,646.45,645.6,1.337]
[1750186922449,1.01613683,646.44,645.6,1.337]
[1750186922744,1.01613683,646.43,645.6,1.337]
[1750186922943,1.01613683,646.42,645.6,1.337]
[1750186923150,1.01613683,646.41,645.6,1.337]
[1750186923348,1.01613683,646.4,645.6,1.337]
[1750186923652,1.01613683,646.39,645.6,1.337]
[1750186923844,1.01613683,646.38,645.61,0.959]
[1750186924046,1.01613683,646.37,645.61,0.959]
[1750186924245,1.01613683,646.36,645.61,0.959]
[1750186924452,1.01613683,646.35,645.61,0.959]
[1750186924651,1.01613683,646.34,645.61,0.959]
[1750186924946,1.01613683,646.33,645.61,0.959]
[1750186925150,0.26933108,646.5,645.61,0.959]
[1750186925151,1.01613683,646.32,645.61,0.959]
[1750186925449,1.01613683,646.31,645.61,0.959]
[1750186925644,1.01613683,646.3,645.61,0.959]
[1750186925848,1.01613683,646.29,645.61,0.959]
[1750186926049,1.01613683,646.28,645.61,0.959]
[1750186926349,1.01613683,646.27,645.61,0.959]
[1750186926546,1.01613683,646.26,645.61,0.959]
[1750186926746,1.01613683,646.25,645.61,0.959]
[1750186927046,1.01613683,646.24,645.61,0.959]
[1750186927243,1.01613683,646.23,645.61,0.959]
[1750186927449,1.01613683,646.22,645.61,0.959]
[1750186927646,1.15712846,646.49,645.61,0.959]
[1750186927647,1.01613683,646.21,645.61,0.959]
[1750186927951,1.01613683,646.2,645.61,0.959]
[1750186928245,1.01613683,646.19,645.61,0.959]
[1750186928544,1.01613683,646.18,645.61,0.959]
[1750186928750,1.15712846,646.48,645.61,0.959]
[1750186928946,1.01571752,646.47,645.61,0.959]
[1750186929155,1.01571752,646.46,645.61,0.959]
[1750186929346,1.01571752,646.45,645.61,0.959]
[1750186929548,1.01571752,646.44,645.61,0.959]
[1750186929750,1.01571752,646.43,645.61,0.959]
[1750186930046,1.01571752,646.42,645.61,0.959]
[1750186930247,1.01571752,646.41,645.61,0.959]
[1750186930446,1.01571752,646.4,645.61,0.959]
[1750186930650,1.01571752,646.39,645.61,0.959]
[1750186930850,1.01571752,646.38,645.61,0.959]
[1750186931047,1.01571752,646.37,645.61,0.959]
[1750186931247,1.01571752,646.36,645.61,0.959]
[1750186931551,1.01571752,646.35,645.61,0.959]
[1750186931847,1.01571752,646.34,645.61,0.959]
[1750186932047,1.01571752,646.33,645.61,0.959]
[1750186932247,1.01571752,646.32,645.61,0.959]
[1750186932547,1.01571752,646.31,645.61,0.959]
[1750186932753,1.01571752,646.3,645.61,0.959]
[1750186932949,1.01571752,646.29,645.61,0.959]
[1750186933150,1.01571752,646.28,645.61,0.959]
[1750186933348,1.01571752,646.27,645.61,0.959]
[1750186933547,1.01571752,646.26,645.61,0.959]
[1750186933749,1.01571752,646.25,645.61,0.959]
[1750186934048,0.26933108,646.5,645.61,0.959]
[1750186934049,1.01579726,646.24,645.61,0.959]
[1750186934251,1.15712846,646.49,645.61,0.959]
[1750186934451,1.01581052,646.48,645.61,0.959]
[1750186934651,1.01581052,646.47,645.61,0.959]
[1750186934852,1.01581052,646.46,645.61,0.959]
[1750186935053,1.01581052,646.45,645.61,0.959]
[1750186935253,1.01581052,646.44,645.61,0.959]
[1750186935453,1.01581052,646.43,645.61,0.959]
[1750186935749,1.01581052,646.42,645.61,0.959]
[1750186935954,1.01581052,646.41,645.61,0.959]
[1750186936150,1.01581052,646.4,645.61,0.959]
[1750186936354,1.01581052,646.39,645.61,0.959]
[1750186936554,1.01581052,646.38,645.61,0.959]
[1750186936855,1.01581052,646.37,645.61,0.959]
[1750186937051,1.01581052,646.36,645.61,0.959]
[1750186937252,0.26933108,646.5,645.62,2.30783177]
[1750186937557,1.01558481,646.49,645.61,0.959]
[1750186937850,0.26933108,646.5,645.61,0.959]
[1750186937851,1.01558481,646.48,645.61,0.959]
[1750186938050,1.01558481,646.47,645.61,0.959]
[1750186938255,1.01558481,646.46,645.61,0.959]
[1750186938552,1.01558481,646.45,645.61,0.959]
[1750186938751,1.01558481,646.44,645.61,0.959]
[1750186938953,1.01558481,646.43,645.61,0.959]
[1750186939153,1.01558481,646.42,645.61,0.959]
[1750186939452,1.01558481,646.41,645.61,0.959]
[1750186939651,1.01558481,646.4,645.61,0.959]
[1750186939855,1.01558481,646.39,645.61,0.959]
[1750186940055,1.01558481,646.38,645.61,0.959]
[1750186940256,0.26933108,646.5,645.61,0.959]
[1750186940458,1.01530908,646.49,645.61,0.959]
[1750186940657,0.26933108,646.5,645.61,0.959]
[1750186940658,1.01530908,646.48,645.61,0.959]
[1750186940957,0.26933108,646.5,645.62,0.922]
[1750186940958,1.01530908,646.47,645.62,0.922]
[1750186941158,1.01530908,646.46,645.62,0.922]
[1750186941353,1.01530908,646.45,645.62,0.922]
[1750186941559,1.01530908,646.44,645.62,0.922]
[1750186941860,1.01530908,646.43,645.62,0.922]
[1750186942058,1.01530908,646.42,645.62,0.922]
[1750186942354,1.01530908,646.41,645.62,0.922]
[1750186942558,1.01530908,646.4,645.62,0.922]
[1750186942760,1.01530908,646.39,645.62,0.922]
[1750186942959,0.26933108,646.5,645.62,0.922]
[1750186943156,1.01520341,646.49,645.62,0.922]
[1750186943459,1.01511892,646.48,645.62,0.922]
[1750186943662,1.01511892,646.47,645.62,0.922]
[1750186943860,1.01511892,646.46,645.63,0.30977494]
[1750186944061,1.01511892,646.45,645.63,0.30977494]
[1750186944256,1.01511892,646.44,645.63,0.30977494]
[1750186944457,1.01511892,646.43,645.63,0.30977494]
[1750186944756,1.01511892,646.42,645.63,0.30977494]
[1750186945061,1.01511892,646.41,645.63,0.30977494]
[1750186945357,1.01509587,646.4,645.63,0.30977494]
[1750186945563,0.26926231,646.61,645.63,0.30977494]
[1750186945858,1.01509442,646.6,645.63,0.30977494]
[1750186946160,1.01509442,646.59,645.63,0.30977494]
[1750186946362,1.01509442,646.58,645.63,0.30977494]
[1750186946661,1.01509442,646.57,645.63,0.30977494]
[1750186946857,1.01509442,646.56,645.63,0.30977494]
[1750186947168,1.01509442,646.55,645.63,0.30977494]
[1750186947360,1.01509442,646.54,645.63,0.30977494]
[1750186947561,1.01509442,646.53,645.63,0.30977494]
[1750186947758,1.01509442,646.52,645.63,0.30977494]
[1750186947959,1.01509442,646.51,645.63,0.30977494]
[1750186948159,1.01509442,646.5,645.63,0.30977494]
[1750186948359,1.01509442,646.49,645.63,0.30977494]
[1750186948560,1.01509442,646.48,645.67,2.30783177]
[1750186948765,0.26926231,646.61,645.67,2.30783177]
[1750186948960,1.01507106,646.6,645.67,2.30783177]
[1750186949164,1.01507106,646.59,645.66,2.30783177]
[1750186949361,1.01507106,646.58,645.65,2.30783177]
[1750186949559,1.01507106,646.58,645.63,0.30977494]
[1750186949560,1.01507106,646.57,645.63,0.30977494]
[1750186949764,1.01507106,646.56,645.63,0.30977494]
[1750186949964,1.01507106,646.55,645.64,1.302]
[1750186950165,0.26924461,646.73,645.66,1.52084043]
[1750186950464,0.26924461,646.73,645.65,1.52084043]
[1750186950661,0.26924461,646.73,645.64,2.82284043]
[1750186951365,0.26924461,646.73,645.64,1.302]
[1750186951863,0.26924461,646.73,645.71,1.52084043]
[1750186952067,0.26924461,646.73,645.75,1.52084043]
[1750186952268,1.15337793,646.97,645.91,1.52084043]
[1750186952564,0.26919254,646.8,645.91,1.52084043]
[1750186952764,1.15337793,647.0,645.92,1.52084043]
[1750186952969,0.26913529,646.93,645.94,1.52084043]
[1750186953371,0.26913529,646.93,645.91,1.52084043]
[1750186953669,0.26913529,646.93,645.92,1.52084043]
[1750186953872,0.26913529,646.93,645.93,1.52084043]
[1750186954073,0.26913529,646.93,645.96,1.52084043]
[1750186954272,0.26913529,646.93,645.97,1.52084043]
[1750186954474,0.26913529,646.93,645.94,1.52084043]
[1750186954672,0.26913529,646.93,645.95,1.52084043]
[1750186955271,0.26913529,646.93,645.93,1.52084043]
[1750186955469,0.26913529,646.93,645.92,1.52084043]
[1750186955871,0.26913529,646.93,645.93,1.52084043]
[1750186956071,0.26913529,646.93,645.91,1.52084043]
[1750186956276,0.26913529,646.93,645.97,1.52084043]
[1750186956477,0.26913529,646.93,645.96,1.52084043]
[1750186956675,0.26913529,646.93,645.64,1.302]
[1750186956676,0.26913529,646.93,645.92,1.52084043]
[1750186956977,0.26913529,646.93,645.96,1.52084043]
[1750186957173,0.26913529,646.93,645.87,1.52084043]
[1750186957373,0.26913529,646.93,645.85,1.52084043]
[1750186957576,0.26913529,646.93,645.82,1.52084043]
[1750186957777,0.26913529,646.93,645.84,1.52084043]
[1750186957971,0.26913529,646.93,645.64,1.302]
[1750186957972,0.26913529,646.93,645.88,1.52084043]
[1750186958173,0.26913529,646.93,645.87,1.52084043]
[1750186958473,0.26913529,646.93,645.83,1.52084043]
[1750186958673,0.26913529,646.93,645.85,1.52084043]
[1750186958878,0.26913529,646.93,645.84,1.52084043]
[1750186959277,0.26913529,646.93,645.79,1.52084043]
[1750186959577,0.26913529,646.93,645.81,1.52084043]
[1750186960172,0.26913529,646.93,645.79,1.52084043]
[1750186960378,0.26913529,646.93,645.78,1.52084043]
[1750186960575,0.26913529,646.93,645.82,1.52084043]
[1750186960780,0.26913529,646.93,645.81,1.52084043]
[1750186961079,0.26913529,646.93,645.83,1.059]
[1750186963078,1.42251322,646.93,645.83,1.059]
[1750186963283,1.42251322,646.93,645.84,0.824]
[1750186963480,1.15337793,646.91,645.84,0.824]
[1750186963679,1.15337793,646.89,645.84,0.824]
[1750186964181,1.15337793,646.9,645.84,0.824]
[1750186965181,1.15337793,646.91,645.84,0.824]
[1750186965881,1.15337793,646.92,645.84,0.824]
[1750186966080,1.15337793,646.91,645.84,0.824]
[1750186966584,1.15337793,646.92,645.84,0.824]
[1750186968089,1.42251322,646.93,645.84,0.824]
[1750186969781,0.26913529,646.93,645.84,0.824]
[1750186970282,1.42251322,646.93,645.84,0.824]
[1750186970788,0.26913529,646.93,645.84,0.824]
[1750186979794,0.26913529,646.93,645.85,0.30966942]
[1750186982091,0.26913529,646.93,645.86,1.01]
[1750186982291,0.26913529,646.93,645.87,0.30965983]
[1750186982694,0.26913529,646.93,645.88,0.968]
[1750186982894,0.26913529,646.93,645.89,1.52084043]
[1750186983192,0.26913529,646.93,645.88,2.48884043]
[1750186983391,0.26913529,646.93,645.89,1.52084043]
[1750186983798,0.26913529,646.93,645.88,2.79849547]
[1750186984592,0.26913529,646.93,645.89,1.52084043]
[1750186985994,0.26913529,646.93,645.88,2.79849547]
[1750186987395,0.26913529,646.93,645.89,1.52084043]
[1750186988300,0.26913529,646.93,645.9,1.52084043]
[1750186988500,0.26913529,646.93,645.89,1.52084043]
[1750186989301,0.26913529,646.93,645.91,1.52084043]
[1750186990199,0.26913529,646.93,645.93,1.52084043]
[1750186991099,0.26913529,646.93,645.94,1.52084043]
[1750186991298,0.26913529,646.93,645.93,1.52084043]
[1750186991502,0.26913529,646.93,645.94,1.52084043]
[1750186992099,0.26913529,646.93,645.95,1.52084043]
[1750186992305,0.26913529,646.93,645.96,1.52084043]
[1750186992708,0.26913529,646.93,645.97,1.52084043]
[1750186993306,1.42251322,646.93,645.97,1.52084043]
[1750186993606,1.42251322,646.93,645.98,1.52084043]
[1750186993806,1.42251322,646.93,645.99,1.52084043]
[1750186994400,1.15337793,646.92,646.0,1.52084043]
[1750186995303,1.15337793,646.92,646.02,1.52084043]
[1750186995810,1.15337793,646.92,646.03,1.52084043]
[1750186996409,1.15337793,646.91,646.05,1.52084043]
[1750186996805,0.26913529,646.93,646.06,1.52084043]
[1750186996806,1.15337793,646.92,646.06,1.52084043]
[1750186997004,1.15337793,646.91,646.05,1.52084043]
[1750186997507,1.15337793,646.91,646.06,1.52084043]